[Event "USA Championship 2024"]
[Site "Saint Louis"]
[Date "2024.10.17"]
[Round "6.1"]
[White "Dominguez Perez, Leinier"]
[Black "Mishra, Abhimanyu"]
[Result "1-0"]
[ECO "B90"]
[WhiteElo "2741"]
[BlackElo "2630"]
[Annotator "TA"]
[PlyCount "133"]
[EventDate "2024.10.09"]
[EventType "tourn"]
[EventCountry "USA"]
[SourceTitle "playchess.com"]
[Source "ChessBase"]
[SourceQuality "1"]
[TimeControl "40/5400+30:1800+30"]

{[%evp 64,133,58,50,64,48,71,58,43,34,43,31,70,82,68,56,53,28,43,18,117,111,117,51,83,75,100,105,81,73,92,89,88,95,85,93,101,43,91,0,90,0,101,28,27,0,0,0,50,52,53,44,52,63,227,239,29964,29966,29971,29972,29967,29972,29969,29970,29987,29988,29988,29989,29989,29990,29994,29995]} 1. e4 {[%emt 0:00:06]} c5 {[%emt 0:00:09]} 2. Nf3 {[%emt 0:00:10]} d6 {[%emt 0:00:36]} 3. d4 {[%emt 0:00:04]} cxd4 {[%emt 0:00:05]} 4. Nxd4 {[%emt 0:00:05]} Nf6 {[%emt 0:00:12]} 5. Nc3 {[%emt 0:00:08]} a6 {[%emt 0:00:14]} 6. Be3 {[%emt 0:00:07]} e5 {[%emt 0:00:19]} 7. Nf3 {[%emt 0:00:08]} Be7 {[%emt 0:00:54]} 8. Bc4 {[%emt 0:00:09]} O-O {[%emt 0:01:00]} 9. O-O {[%emt 0:00:09]} Nc6 {[%emt 0:00:54]} 10. Bg5 {[%emt 0:00:11]} Be6 {[%emt 0:00:47]} 11. Qe2 {[%emt 0:00:08]} Nd7 {[%emt 0:08:35]} 12. Bxe7 {[%emt 0:03:02]} Qxe7 {[%emt 0:01:22]} 13. Nd5 {[%emt 0:00:08]} Bxd5 {[%emt 0:05:16]} 14. Bxd5 {[%emt 0:00:16]} Nf6 {[%emt 0:01:56]} 15. Rad1 {[%emt 0:19:19]} Rac8 {[%emt 0:03:24]} 16. c3 {[%emt 0:01:18]} Rfd8 {[%emt 0:01:33]} 17. g3 {[%emt 0:14:43]} Nxd5 {[%emt 0:14:00]} 18. Rxd5 {[%emt 0:04:32]} Qe6 {[%emt 0:00:42]} 19. Rfd1 {[%emt 0:01:12]} Ne7 {[%emt 0:02:12]} 20. R5d3 {[%emt 0:00:09]} f6 {[%emt 0:04:02]} 21. Nh4 {[%emt 0:01:59]} Rd7 {[%emt 0:05:18]} 22. b3 {[%emt 0:13:34]} d5 {[%emt 0:11:46]} 23. exd5 {[%emt 0:05:55]} Rxd5 {[%emt 0:00:32]} 24. c4 {[%emt 0:01:51]} Rxd3 {[%emt 0:00:15]} 25. Qxd3 {[%emt 0:00:37]} b6 {[%emt 0:06:47]} 26. Ng2 {[%emt 0:04:41]} Nf5 {[%emt 0:04:18]} 27. Qe4 {[%emt 0:07:20]} Re8 {[%emt 0:04:08]} 28. Ne3 {[%emt 0:01:53]} Nd4 {[%emt 0:04:54]} 29. Nc2 {[%emt 0:06:25]} Nc6 {[%emt 0:04:30]} 30. Ne3 {[%emt 0:00:29]} Nd4 {[%emt 0:00:27]} 31. Nc2 {[%emt 0:03:42]} Nc6 {[%emt 0:00:40]} 32. Qe3 {[%emt 0:03:23]} Rb8 {[%emt 0:06:08]} 33. Rd2 {[%emt 0:03:19]} h6 {[%emt 0:02:41]} 34. h4 {[%emt 0:01:03]} f5 {[%emt 0:01:31]} 35. Nd4 {[%emt 0:01:14]} Nxd4 {[%emt 0:00:12]} 36. Rxd4 {[%emt 0:00:02]} Re8 {[%emt 0:01:33]} 37. Rd5 {[%emt 0:01:24]} Kh8 {[%emt 0:01:42]} 38. Qd3 {[%emt 0:02:29]} Qf6 {[%emt 0:02:32]} 39. Rd6 {[%emt 0:01:05]} Re6 {[%emt 0:00:48]} 40. Rxe6 {[%emt 0:01:25]} Qxe6 {[%emt 0:00:05]} 41. b4 {[%emt 0:01:46]} Qc6 {[%emt 0:15:06]} (41... f4 $11 {keeps the balance.}) 42. h5 $1 $16 {[%emt 0:06:35]} (42. Qxf5 $6 Qxc4 43. Qxe5 Qxb4 $11) 42... Kg8 {[%emt 0:05:33]} 43. a3 {[%emt 0:01:45]} (43. Qxf5 $16 {Black must now prevent Qc2.} Qxc4 44. Qxe5) 43... e4 {[%emt 0:01:57]} 44. Qd4 {[%emt 0:03:15]} Kf7 {[%emt 0:02:35]} 45. c5 {[%emt 0:00:14]} bxc5 {[%emt 0:01:33]} 46. bxc5 {[%emt 0:00:02]} Qe6 {[%emt 0:01:55]} 47. Kf1 {[%emt 0:03:43]} g5 {[%emt 0:01:26]} 48. hxg6+ {[%emt 0:02:50]} Kxg6 {[%emt 0:00:05]} 49. Qc3 {[%emt 0:01:47]} Qc6 {[%emt 0:02:15]} 50. Ke1 {[%emt 0:00:06]} (50. a4 $16) 50... h5 {[%emt 0:01:56]} (50... Kf7 $14) 51. Qe5 {[%emt 0:02:37]} Qd7 {[%emt 0:00:34]} 52. Qc3 {[%emt 0:01:25]} Qc6 {[%emt 0:00:29] [#]} 53. Qb4 {[%emt 0:00:52]} (53. a4 $1 $16) 53... Kf7 $1 $11 {[%emt 0:00:53]} 54. Qb6 {[%emt 0:00:58]} Qb5 {[%emt 0:00:31]} 55. Qc7+ {[%emt 0:01:08]} Ke8 {[%emt 0:00:55]} (55... Kf6 $11) 56. Qe5+ $14 {[%emt 0:04:06]} Kd8 {[%emt 0:00:08]} 57. Qd4+ {[%emt 0:01:09]} (57. Qxf5 Qb1+ 58. Ke2 Qd3+ 59. Ke1 Qb1+ 60. Ke2 Qd3+ 61. Ke1 Qb1+ $11) 57... Kc8 {[%emt 0:00:37]} 58. a4 {[%emt 0:02:49]} Qb3 $2 {[%emt 0:01:14] [#]} (58... Qd7 $14 59. Qf6 a5) 59. c6 $1 $18 {[%emt 0:01:03]} Qd3 $2 {[%emt 0:00:40]} (59... Qb1+ $18 60. Kd2 e3+ 61. Kxe3 (61. Qxe3 Qb2+ 62. Kd1 Qb1+ 63. Ke2 Qc2+ 64. Kf1 Qxc6 $14) (61. fxe3 Qa2+ 62. Kc3 Qa3+ 63. Kc2 Qa2+ 64. Kd3 Qb3+ 65. Kd2 Qa2+ 66. Ke1 Qb1+ 67. Ke2 Qc2+ 68. Kf3 Qxc6+ 69. Kf4 Qc7+ 70. Qe5 Qc4+ 71. Qd4 Qc7+ 72. Kg5 Qxg3+ 73. Kxh5 Qg8 $11) 61... Qc1+ 62. Kf3 Qxc6+ 63. Kf4 Qg6 64. Qc5+ Kb8 65. Qxf5 Qh6+ 66. Ke5 Qd2) 60. Qb6 {[%emt 0:00:57]} Qd6 {[%emt 0:00:36]} 61. Qxa6+ {[%emt 0:00:14]} Kd8 {[%emt 0:00:18]} 62. Qa8+ {[%emt 0:01:02]} (62. Qa5+ Ke7 63. c7 (63. Qxf5 Qxc6 64. Qg5+ Kf8 $18) 63... Qc6 $18) 62... Ke7 {[%emt 0:00:31]} 63. Qb7+ {[%emt 0:00:06]} Kf6 {[%emt 0:00:26]} 64. c7 {[%emt 0:00:28]} e3 {[%emt 0:00:33]} 65. Qb2+ {[%emt 0:00:05]} (65. c8=R $2 {leads to mate.} Qd2+ 66. Kf1 Qxf2#) 65... Kg6 {[%emt 0:00:21]} 66. c8=Q {[%emt 0:00:22]} exf2+ {[%emt 0:00:05]} 67. Kxf2 {[%emt 0:00:15]} 1-0

[Event "USA Championship 2024"]
[Site "Saint Louis"]
[Date "2024.10.17"]
[Round "6.2"]
[White "Caruana, Fabiano"]
[Black "Oparin, Grigoriy"]
[Result "1-0"]
[ECO "C50"]
[WhiteElo "2796"]
[BlackElo "2662"]
[Annotator "TA"]
[PlyCount "107"]
[EventDate "2024.10.09"]
[EventType "tourn"]
[EventCountry "USA"]
[SourceTitle "playchess.com"]
[Source "ChessBase"]
[SourceQuality "1"]
[TimeControl "40/5400+30:1800+30"]

{[%evp 24,107,25,25,45,50,49,35,45,15,36,56,52,50,75,75,79,68,82,66,73,81,100,92,95,85,80,52,83,50,39,41,25,35,27,38,55,55,55,35,91,0,55,24,57,58,82,71,83,72,78,88,88,22,4,4,12,12,110,141,143,139,174,158,301,303,241,281,275,265,290,203,285,272,282,296,293,297,268,287,376,387,363,381,525,490]} 1. e4 {[%emt 0:00:03]} e5 {[%emt 0:00:07]} 2. Nf3 {[%emt 0:00:04]} Nc6 {[%emt 0:00:04]} 3. Bc4 {[%emt 0:00:04]} Nf6 {[%emt 0:00:18]} 4. d3 {[%emt 0:00:05]} h6 {[%emt 0:02:19]} 5. a3 {[%emt 0:01:55]} Bc5 {[%emt 0:08:30]} 6. Nc3 {[%emt 0:04:36]} a6 {[%emt 0:01:45]} 7. Be3 {[%emt 0:00:11] C50: Hungarian Defence and Giuoco Pianissimo.} d6 {[%emt 0:03:53]} 8. Bxc5 $1 {[%emt 0:01:18][%mdl 4] is now more promising than 8.h3.} dxc5 {[%emt 0:00:05]} 9. O-O $146 {[%emt 0:00:06]} ({Predecessor:} 9. Nd5 O-O 10. Ne3 Re8 11. O-O b5 12. Ba2 Be6 13. Bxe6 Rxe6 14. a4 g6 15. Nd2 {0-1 Alekseenko,K (2679)-Navara,D (2681) Julius Baer GenCup D3 L rapid 2024 (3.3)}) 9... Qd6 {[%emt 0:04:33]} 10. Nd5 {[%emt 0:12:30]} Nxd5 {[%emt 0:09:35]} 11. exd5 {[%emt 0:04:35]} Ne7 {[%emt 0:00:28]} 12. Qe1 {[%emt 0:00:23]} f6 {[%emt 0:05:21]} 13. Nd2 {[%emt 0:01:38]} Bf5 {[%emt 0:03:05]} 14. Ne4 {[%emt 0:02:56]} Bxe4 {[%emt 0:00:40]} 15. dxe4 {[%emt 0:00:35]} O-O {[%emt 0:16:56]} 16. b4 {[%emt 0:01:40]} b6 {[%emt 0:12:55]} 17. bxc5 {[%emt 0:05:32]} Qxc5 {[%emt 0:00:16]} 18. Qb4 {[%emt 0:03:15]} Qd6 {[%emt 0:00:34]} 19. Qxd6 {[%emt 0:03:59]} cxd6 {[%emt 0:00:07]} 20. Rfb1 {[%emt 0:00:17]} Nc8 {[%emt 0:05:26]} 21. Be2 {[%emt 0:05:50]} f5 {[%emt 0:01:53]} 22. f3 {[%emt 0:10:00]} Ra7 {[%emt 0:00:47]} 23. Rb3 {[%emt 0:05:25]} fxe4 {[%emt 0:02:16]} 24. fxe4 {[%emt 0:00:04]} Rc7 {[%emt 0:00:07]} 25. c4 {[%emt 0:03:57]} g6 {[%emt 0:03:40]} 26. a4 {[%emt 0:05:22]} a5 {[%emt 0:00:44]} 27. Rc1 {[%emt 0:01:53]} h5 {[%emt 0:01:21]} 28. g3 {[%emt 0:04:51]} Kg7 {[%emt 0:00:54]} 29. h4 {[%emt 0:00:39]} Rff7 {[%emt 0:03:37]} 30. Kg2 {[%emt 0:05:01]} Rf6 {[%emt 0:02:58]} 31. Bf3 {[%emt 0:00:57]} Rff7 {[%emt 0:02:32]} (31... Rcf7 $14) 32. Be2 {[%emt 0:08:06]} Rf6 $1 {[%emt 0:00:06]} 33. Ra1 {[%emt 0:01:40]} Rff7 {[%emt 0:01:04]} 34. Rf3 {[%emt 0:02:58]} Rxf3 {[%emt 0:04:28]} 35. Kxf3 {[%emt 0:00:03]} Ne7 {[%emt 0:00:04]} 36. Rb1 {[%emt 0:00:55]} Rb7 {[%emt 0:00:04]} 37. Ke3 {[%emt 0:02:58]} Ng8 {[%emt 0:00:42]} 38. g4 {[%emt 0:00:26]} (38. c5 $1 $16 dxc5 39. d6 (39. Ba6 Rb8 $14)) 38... hxg4 $1 $11 {[%emt 0:00:27]} 39. Bxg4 {[%emt 0:00:02]} Nf6 {[%emt 0:00:12]} 40. Be6 {[%emt 0:00:18]} Rb8 {[%emt 0:04:53] [#]} (40... Ne8 $1 $11 {keeps the balance.}) 41. c5 $1 $16 {[%emt 0:04:07]} dxc5 {[%emt 0:00:33]} 42. d6 {[%emt 0:00:07]} Rh8 {[%emt 0:11:55]} 43. d7 {[%emt 0:02:52]} Rd8 {[%emt 0:00:11]} (43... Rb8 $16) 44. Rxb6 $18 {[%emt 0:02:31]} Kf8 {[%emt 0:00:04]} 45. Bc4 {[%emt 0:00:57]} Kg7 {[%emt 0:02:06] [#]} 46. Bb5 $1 {[%emt 0:02:01]} Kf7 {[%emt 0:00:05]} 47. Rc6 {[%emt 0:07:43]} Nxd7 {[%emt 0:04:04]} (47... Ke7 $142 48. Rxc5 Kd6 49. Rc6+ Ke7) 48. Bc4+ $18 {[%emt 0:00:07]} Ke7 {[%emt 0:00:24]} 49. Re6+ {[%emt 0:00:05]} ({Less strong is} 49. Rxg6 Rh8 $11) 49... Kf7 {[%emt 0:00:21]} 50. Rxe5+ {[%emt 0:01:32]} Kf8 {[%emt 0:00:06]} 51. Re6 {[%emt 0:03:47]} Rb8 {[%emt 0:02:50]} 52. Bb5 {[%emt 0:00:49]} ({Much less strong is} 52. Rxg6 Rb4 $18) 52... Rb7 {[%emt 0:00:05]} 53. Rxg6 {[%emt 0:00:51]} Ne5 {[%emt 0:00:12]} 54. Rg5 {[%emt 0:00:20]} 1-0

[Event "USA Championship 2024"]
[Site "Saint Louis"]
[Date "2024.10.17"]
[Round "6.3"]
[White "Niemann, Hans Moke"]
[Black "Aronian, Levon"]
[Result "1/2-1/2"]
[ECO "C11"]
[WhiteElo "2733"]
[BlackElo "2738"]
[Annotator "RC"]
[PlyCount "68"]
[EventDate "2024.10.09"]
[EventType "tourn"]
[EventCountry "USA"]
[SourceTitle "playchess.com"]
[Source "ChessBase"]
[SourceQuality "1"]
[TimeControl "40/5400+30:1800+30"]

1. e4 {[%emt 0:00:23]} e6 {[%emt 0:01:41]} 2. d4 {[%emt 0:00:34]} d5 {[%emt 0:00:06]} 3. Nc3 {[%emt 0:04:33]} Nf6 {[%emt 0:00:07]} 4. e5 {[%emt 0:00:27]} Nfd7 {[%emt 0:00:04]} 5. f4 {[%emt 0:00:09]} c5 {[%emt 0:00:03]} 6. Nf3 {[%emt 0:00:10]} Nc6 {[%emt 0:00:04]} 7. Be3 {[%emt 0:00:10]} a6 {[%emt 0:00:04]} 8. Qd2 {[%emt 0:01:22]} b5 {[%emt 0:00:38]} 9. h4 {[%emt 0:00:27]} Bb7 {[%emt 0:00:09]} 10. Qf2 {[%emt 0:05:18]} cxd4 {[%emt 0:00:33]} 11. Nxd4 {[%emt 0:00:10]} Nxd4 {[%emt 0:00:03]} 12. Bxd4 {[%emt 0:00:08]} Qc7 {[%emt 0:00:02]} 13. Bd3 {[%emt 0:02:26]} Bc5 {[%emt 0:00:44]} 14. Ne2 {[%emt 0:01:00]} f6 {[%emt 0:00:04]} 15. O-O {[%emt 0:08:54]} O-O {[%emt 0:02:04]} 16. Qe3 {[%emt 0:09:38]} fxe5 {[%emt 0:09:57]} 17. fxe5 {[%emt 0:00:09]} Rxf1+ {[%emt 0:00:29]} 18. Rxf1 {[%emt 0:00:11]} Bxd4 {[%emt 0:00:30]} 19. Nxd4 {[%emt 0:00:15]} Qxe5 {[%emt 0:00:15]} 20. Qxe5 {[%emt 0:00:31]} Nxe5 {[%emt 0:00:05]} 21. Re1 {[%emt 0:05:32]} Nc4 {[%emt 0:03:01]} 22. Bxc4 {[%emt 0:04:59]} dxc4 {[%emt 0:00:11]} 23. Rxe6 {[%emt 0:00:07]} c3 {[%emt 0:00:02]} 24. b4 {[%emt 0:15:28]} Rd8 {[%emt 0:01:22]} 25. Nb3 {[%emt 0:00:55]} Bd5 {[%emt 0:00:09]} 26. Re3 {[%emt 0:00:58]} Bxb3 {[%emt 0:00:19]} 27. axb3 {[%emt 0:00:05]} Rd4 {[%emt 0:00:06]} 28. Rxc3 {[%emt 0:00:10]} Rxb4 {[%emt 0:00:04]} 29. Rc8+ {[%emt 0:00:33]} Kf7 {[%emt 0:00:04]} 30. Rc7+ {[%emt 0:00:41]} Kf8 {[%emt 0:00:18]} 31. Rc8+ {[%emt 0:00:16]} Ke7 {[%emt 0:00:28]} 32. Rc7+ {[%emt 0:00:06]} Kf8 {[%emt 0:00:18]} 33. Rc8+ {[%emt 0:00:12]} Ke7 {[%emt 0:00:10]} 34. Rc7+ {[%emt 0:00:07]} Kf8 {[%emt 0:00:16]} 1/2-1/2

[Event "USA Championship 2024"]
[Site "Saint Louis"]
[Date "2024.10.17"]
[Round "6.4"]
[White "Shankland, Sam"]
[Black "Robson, Ray"]
[Result "1-0"]
[ECO "C11"]
[WhiteElo "2677"]
[BlackElo "2693"]
[Annotator "TA"]
[PlyCount "73"]
[EventDate "2024.10.09"]
[EventType "tourn"]
[EventCountry "USA"]
[SourceTitle "playchess.com"]
[Source "ChessBase"]
[SourceQuality "1"]
[TimeControl "40/5400+30:1800+30"]

{[%evp 17,73,0,0,0,0,0,19,0,0,0,43,39,46,38,45,30,34,42,54,31,30,28,24,18,28,17,43,12,17,17,24,13,80,52,64,58,61,53,115,116,691,676,670,679,770,690,774,754,767,770,774,769,2402,2375,1671,1195,29991,29992]} 1. e4 {[%emt 0:00:10]} e6 {[%emt 0:00:25]} 2. d4 {[%emt 0:01:07]} d5 {[%emt 0:00:23]} 3. Nc3 {[%emt 0:00:07][%cal Bb1c3,Bc3e2,Be2f4][%mdl 32]} Nf6 {[%emt 0:00:53]} 4. e5 {[%emt 0:00:09]} Nfd7 {[%emt 0:00:14]} 5. Nce2 {[%emt 0:02:45]} c5 {[%emt 0:00:49]} 6. c3 {[%emt 0:00:10]} Nc6 {[%emt 0:00:54]} 7. Nf3 {[%emt 0:00:30]} cxd4 {[%emt 0:23:46]} 8. cxd4 {[%emt 0:00:06]} f6 {[%emt 0:10:16]} 9. Nf4 {[%emt 0:14:14]} Bb4+ {[%emt 0:03:00]} (9... fxe5 10. Nxe6 Qb6 11. Be2) 10. Bd2 {[%emt 0:03:47]} Qe7 {[%emt 0:00:56]} 11. exf6 {[%emt 0:06:44]} Nxf6 {[%emt 0:03:38] White must now prevent ...Bxd2+.} 12. a3 {[%emt 0:12:22] The position is equal.} Bxd2+ {[%emt 0:15:14]} 13. Qxd2 {[%emt 0:00:12]} e5 {[%emt 0:01:43]} 14. dxe5 {[%emt 0:01:57]} Nxe5 {[%emt 0:01:21]} 15. Nxe5 {[%emt 0:03:21]} (15. Nxd5 $2 Nxf3+ 16. Kd1 Nxd2 $19) 15... Qxe5+ {[%emt 0:00:40]} 16. Qe2 {[%emt 0:00:33]} Qxe2+ {[%emt 0:06:11]} 17. Nxe2 {[%emt 0:00:35]} Ke7 {[%emt 0:06:12]} 18. Nd4 {[%emt 0:01:53]} Bd7 {[%emt 0:01:29]} 19. Bd3 {[%emt 0:01:27]} Kd6 {[%emt 0:00:32]} 20. f3 {[%emt 0:05:01]} g5 {[%emt 0:00:57]} 21. Kd2 {[%emt 0:02:52]} h5 {[%emt 0:00:34]} 22. Rae1 {[%emt 0:03:26]} Rae8 {[%emt 0:04:23]} 23. Bg6 {[%emt 0:04:03]} (23. Bf5 {simplifies} Rxe1 24. Rxe1 Re8 25. Rxe8 Nxe8 26. Bxd7 Kxd7 27. Ke3) 23... Rc8 {[%emt 0:07:23]} 24. Re3 {[%emt 0:03:22]} g4 {[%emt 0:02:17]} (24... Rhg8 $11 25. Bd3 Rce8) 25. Rhe1 {[%emt 0:04:27][%cal Oe3e6] Re6+! would now be deadly.} (25. Nf5+ {simplifies} Kc7 26. Ne7 Rcd8 27. f4) 25... Rhf8 {[%emt 0:02:55]} 26. Kd3 {[%emt 0:03:46] White is much more active.} gxf3 {[%emt 0:01:26]} 27. gxf3 {[%emt 0:00:33]} ({Reject} 27. Rxf3 Ng4 $11) 27... Rc4 {[%emt 0:03:28] [#]} (27... h4 $14) 28. b3 $1 $16 {[%emt 0:02:15] Some like it hot} Kc5 {[%emt 0:01:55][%mdl 8192] Black cannot hold the game after this.} 29. Ne6+ $18 {[%emt 0:02:25]} Bxe6 {[%emt 0:00:02]} 30. Rxe6 {[%emt 0:00:05]} Rf4 {[%emt 0:01:01]} 31. Rc1+ {[%emt 0:02:23]} Kb5 {[%emt 0:00:01]} 32. Ke2 {[%emt 0:04:30]} Nd7 {[%emt 0:01:01]} 33. Bd3+ {[%emt 0:00:37]} ({Less strong is} 33. Bxh5 R8f6 (33... Rh4 $2 34. Be8 $18) 34. Re7 Nc5 $16) 33... Ka5 {[%emt 0:00:01]} 34. Rc7 {[%emt 0:00:41][%csl LRb7,LRd7]} R8f7 {[%emt 0:00:58]} 35. Rxb7 {[%emt 0:01:50][%cal Rb7a7]} Nb6 {[%emt 0:00:26] [#]} 36. Rc6 $1 {[%emt 0:00:21]} Rc4 {[%emt 0:00:35] Inhibits Rc5+.} (36... Nc4 37. Rc5+) 37. Rxf7 {[%emt 0:00:11] Weighted Error Value: White=0.07 (flawless) /Black=0.65.  Loses game:     	---       	Black=1      Mistake:       	---       	Black=2      Inaccurate:     	White=2     	Black=2      OK:         	White=2     	Black=4      Best:        	White=1     	Black=1      Strong:       	White=1     	---} 1-0

[Event "USA Championship 2024"]
[Site "Saint Louis"]
[Date "2024.10.17"]
[Round "6.5"]
[White "So, Wesley"]
[Black "Sevian, Samuel"]
[Result "1/2-1/2"]
[ECO "A29"]
[WhiteElo "2751"]
[BlackElo "2689"]
[Annotator "TA"]
[PlyCount "92"]
[EventDate "2024.10.09"]
[EventType "tourn"]
[EventCountry "USA"]
[SourceTitle "playchess.com"]
[Source "ChessBase"]
[SourceQuality "1"]
[TimeControl "40/5400+30:1800+30"]

{[%evp 20,92,20,8,19,0,0,8,7,1,8,0,0,0,0,0,0,0,0,0,0,-17,7,7,14,8,2,5,22,29,43,13,31,0,27,40,36,23,19,26,18,0,0,0,5,12,6,0,0,0,15,15,15,14,17,17,17,1,1,0,0,0,0,0,0,0,0,0,0,0,0,0,0,0,0]} 1. c4 {[%emt 0:00:46]} e5 {[%emt 0:00:35]} 2. Nc3 {[%emt 0:00:31]} Nf6 {[%emt 0:00:21]} 3. Nf3 {[%emt 0:00:07]} Nc6 {[%emt 0:00:07]} 4. g3 {[%emt 0:00:05]} d5 {[%emt 0:00:38]} 5. cxd5 {[%emt 0:01:02]} Nxd5 {[%emt 0:00:08]} 6. Bg2 {[%emt 0:00:07]} Nb6 {[%emt 0:00:43]} 7. O-O {[%emt 0:00:19]} Be7 {[%emt 0:00:14]} 8. Rb1 {[%emt 0:00:07]} a5 {[%emt 0:07:03]} 9. d3 {[%emt 0:00:06]} Be6 {[%emt 0:01:55]} 10. Be3 {[%emt 0:00:21]} O-O {[%emt 0:09:25]} 11. a3 {[%emt 0:00:08]} Re8 {[%emt 0:01:52]} 12. Re1 {[%emt 0:03:13]} Nd5 {[%emt 0:02:19]} 13. Nxd5 {[%emt 0:00:17]} Bxd5 {[%emt 0:00:05]} 14. Qa4 {[%emt 0:00:04]} Bf6 {[%emt 0:02:34]} 15. Rbc1 {[%emt 0:00:20]} Nd4 {[%emt 0:07:20]} 16. Nxd4 {[%emt 0:00:16] [#] Threatens to win with Nb5.} Bxg2 {[%emt 0:00:37]} 17. Ne6 {[%emt 0:00:06]} Rxe6 {[%emt 0:00:25]} 18. Kxg2 {[%emt 0:00:04]} c6 {[%emt 0:05:09]} 19. Qe4 {[%emt 0:01:41]} Be7 {[%emt 0:07:24]} 20. Rc4 {[%emt 0:13:07]} g6 {[%emt 0:02:42]} 21. g4 {[%emt 0:01:48]} Bg5 {[%emt 0:01:38]} 22. Rh1 {[%emt 0:14:07]} Bxe3 {[%emt 0:08:08]} 23. Qxe3 {[%emt 0:01:41]} Qd5+ {[%emt 0:01:48]} 24. f3 {[%emt 0:02:42]} b5 {[%emt 0:02:02]} 25. Rc2 {[%emt 0:03:17]} Qd4 {[%emt 0:02:20]} 26. Qe4 {[%emt 0:07:57]} Rf8 {[%emt 0:10:37]} 27. Qxd4 {[%emt 0:16:12]} exd4 $11 {[%emt 0:00:04][%mdl 4096] Endgame. [#] KRR-KRR} 28. a4 $1 {[%emt 0:00:04]} Rfe8 {[%emt 0:10:48]} ({Much worse is} 28... bxa4 29. Ra1 $16) 29. Kf2 {[%emt 0:00:35]} Re5 {[%emt 0:01:20]} 30. axb5 {[%emt 0:12:11] The position is equal.} Rxb5 {[%emt 0:02:14]} 31. Ra1 {[%emt 0:06:21][%cal Oa1a4]} g5 {[%emt 0:01:30]} 32. b3 {[%emt 0:07:41]} c5 {[%emt 0:00:51]} 33. Ra4 {[%emt 0:02:22]} h6 {[%emt 0:01:00]} 34. Rca2 {[%emt 0:01:06]} Rxb3 {[%emt 0:04:40]} 35. Rxa5 {[%emt 0:00:55]} Rc3 {[%emt 0:00:03]} 36. Ra8 {[%emt 0:05:15]} Rxa8 {[%emt 0:00:07]} 37. Rxa8+ {[%emt 0:00:02] KR-KR} Kg7 {[%emt 0:00:02]} 38. Rc8 {[%emt 0:00:58]} Rc1 {[%emt 0:00:44]} 39. Rc6 {[%emt 0:00:21]} f6 {[%emt 0:01:21]} 40. h3 {[%emt 0:00:19]} Kg6 {[%emt 0:00:37]} 41. Re6 {[%emt 0:30:41]} Kf7 {[%emt 0:30:07]} 42. Re4 {[%emt 0:00:28]} Rh1 {[%emt 0:01:00]} 43. Kg2 {[%emt 0:00:12]} Re1 {[%emt 0:00:04]} 44. Kf2 {[%emt 0:00:00]} Rh1 {[%emt 0:00:00]} 45. Kg2 {[%emt 0:00:00]} Re1 {[%emt 0:00:00]} 46. Kf2 {[%emt 0:00:00]} Rh1 {[%emt 0:00:16] Weighted Error Value: White=0.04 (flawless) /Black=0.04 (flawless) .  Inaccurate:     	White=1     	Black=1      OK:         	White=16    	Black=17     Best:        	---       	Black=2} 1/2-1/2